lending/lending_fUSD_20240507
["ID","MTS","AMOUNT","RATE_DAILY","PERIOD"]
[326539887,1715098244183,-27078.4265021,0.00012981,2]
[326539888,1715098244193,-22004.4336601,0.00012981,2]
[326539889,1715098244203,-16930.4408181,0.00012981,2]
[326539890,1715098244212,-11856.4479761,0.00012981,2]
[326539891,1715098244222,-7224.6544341,0.00012981,2]
[326539892,1715098244232,-5870.8887387,0.00012981,2]
[326539893,1715098244242,-4517.1230432,0.00012981,2]
[326539894,1715098244251,-3163.3573478,0.00012981,2]
[326539895,1715098244261,-151.0,0.00012981,2]
[326539896,1715098244270,-622.406827,0.00012981,2]
[326539897,1715098244281,-151.0,0.00012981,2]
[326539898,1715098244290,-1289.8226788,0.00012981,2]
[326539899,1715098244300,-1048.1339293,0.00012981,2]
[326539900,1715098244309,-151.0,0.00012981,2]
[326539901,1715098244324,-806.4451798,0.00012981,2]
[326539902,1715098244333,-564.7564303,0.00012981,2]
[326539903,1715098244342,-622.406827,0.00012981,2]
[326539904,1715098244352,-151.0,0.00012981,2]
[326539905,1715098244363,-238.9163906,0.00012981,2]
[326539906,1715098244372,-238.9163906,0.00012981,2]
[326539907,1715098244383,-238.9163906,0.00012981,2]
[326539908,1715098244392,-238.9163906,0.00012981,2]
[326539909,1715098244404,-6782.4551341,0.00012989,2]
[326539910,1715098244414,-1809.5916524,0.00012989,2]
[326539911,1715098244423,-323.0676808,0.00012989,2]
[326539912,1715098244432,-238.9163906,0.00012989,2]
[326539913,1715098244442,-151.29,0.0001299,2]
[326539914,1715098244451,-151.29,0.0001299,2]
[326539915,1715098244460,-151.29,0.0001299,2]
[326539916,1715098244469,-151.29,0.0001299,2]
[326539917,1715098244478,-151.29,0.0001299,2]
[326539918,1715098244487,-151.29,0.0001299,2]
[326539919,1715098244497,-151.29,0.0001299,2]
[326539920,1715098244506,-151.29,0.0001299,2]
[326539921,1715098244516,-151.29,0.0001299,2]
[326539922,1715098244525,-151.29,0.0001299,2]
[326539923,1715098244536,-501.7340345,0.00012998,2]
[326539924,1715098244545,-944114.93110135,0.00013,2]
[326539925,1715098244557,-348.04079335,0.00013,2]
[326539957,1715098246602,-155.0,0.00012979,2]
[326539958,1715098246611,-295.06598,0.00013,2]
[326540002,1715098247265,-28895.26368255,0.00013,2]
[326540003,1715098247276,-3519.36806634,0.00013,2]
[326540013,1715099436802,-1296.05469541,0.00011306,2]
[326540014,1715099436815,-331.13490455,0.00011306,2]
[326540016,1715099436826,-837.57834781,0.00011308,2]
[326540017,1715099436840,-1712.57125797,0.00011308,2]
[326540018,1715099436859,-1940.7618192,0.00011308,2]
[326540019,1715099436873,-615.37150274,0.00011346,2]
[326540020,1715099436886,-150.0,0.00011688,2]
[326540021,1715099436901,-183.72,0.00012,2]
[326540022,1715099436913,-250.0,0.00012002,2]
[326540023,1715099436925,-520.0,0.00012011,2]
[326540024,1715099436942,-150.0,0.00012011,2]
[326540025,1715099436953,-6917.16,0.00012062,2]
[326540026,1715099436966,-151.54,0.00012101,2]
[326540027,1715099436977,-480.0,0.00012114,2]
[326540028,1715099436988,-717.44667806,0.0001235,2]
[326540029,1715099437008,-23182.55332194,0.0001235,2]
[326540030,1715099437018,-9678.03,0.000127,2]
[326540031,1715099437028,-3144.52,0.000127,2]
[326540032,1715099437039,-960.9991,0.000127,2]
[326540033,1715099437050,-200.0,0.00012735,2]
[326540034,1715099437064,-53298.7396,0.000128,2]
[326540035,1715099437075,-341.47,0.000128,2]
[326540036,1715099437096,-458.87,0.000128,2]
[326540037,1715099437120,-174.76024922,0.000129,2]
[326540038,1715099437132,-500.0,0.000129,2]
[326540039,1715099437145,-4964.36319074,0.000129,2]
[326540040,1715099437158,-1077.2188,0.000129,2]
[326540041,1715099437169,-1180.0328,0.000129,2]
[326540042,1715099437181,-1008.0156,0.000129,2]
[326540043,1715099437230,-197.68092387,0.000129,2]
[326540044,1715099437262,-7500.0,0.000129,2]
[326540045,1715099437280,-954.7754788,0.000129,2]
[326540046,1715099437305,-172.11327142,0.000129,2]
[326540047,1715099437316,-196.71913629,0.000129,2]
[326540048,1715099437333,-150.0,0.00012986,2]
[326540049,1715099437368,-151.0,0.0001299,2]
[326540050,1715099437389,-151.0,0.0001299,2]
[326540051,1715099437400,-151.0,0.0001299,2]
[326540052,1715099437411,-151.0,0.0001299,2]
[326540053,1715099437422,-151.0,0.0001299,2]
[326540054,1715099437433,-151.0,0.0001299,2]
[326540055,1715099437444,-151.0,0.0001299,2]
[326540056,1715099437460,-151.0,0.0001299,2]
[326540057,1715099437470,-151.0,0.0001299,2]
[326540058,1715099437481,-151.0,0.0001299,2]
[326540059,1715099437501,-151.0,0.0001299,2]
[326540060,1715099437514,-151.0,0.0001299,2]
[326540061,1715099437526,-151.0,0.0001299,2]
[326540062,1715099437541,-151.0,0.0001299,2]
[326540066,1715099437564,-155.41401368,0.00012998,2]
[326540069,1715099437582,-969.69720886,0.00012998,2]
[326540070,1715099437593,-1340.43061439,0.00012998,2]
[326540072,1715099437605,-684.85937217,0.00012998,2]
[326540074,1715099437617,-2217.73701039,0.00012998,2]
[326540076,1715099437629,-326.51563459,0.00012998,2]
[326540078,1715099437641,-155.0,0.00012998,2]
[326540080,1715099437674,-292.98603723,0.00012998,2]
[326540081,1715099437691,-186.12897839,0.00012998,2]
[326540084,1715099437707,-3769.34668531,0.00012998,2]
[326540086,1715099437718,-156.74902331,0.00012998,2]
[326540088,1715099437735,-654.75526057,0.00012999,2]
[326540090,1715099437747,-40454.66056834,0.00013,2]
[326540093,1715099437787,-4666.6,0.00013,2]
[326540096,1715099437800,-1462305.77131003,0.00013,2]
[326540098,1715099437811,-313.09483874,0.00013,2]
[326540099,1715099437822,-298.47108253,0.00013,2]
[326540100,1715099437834,-202300.44866575,0.00013,2]
[326540109,1715099438325,-81439.92257402,0.00013,2]
[326540127,1715099441790,-3580.57222956,0.00013,2]
[326540128,1715099441805,-1012.34372896,0.00013,2]
[326540129,1715099441818,-26388.73733382,0.00013,2]
[326540132,1715099441843,-648.70118642,0.00013,2]
[326540134,1715099441872,-272.32466048,0.00013,2]
[326540136,1715099441884,-493.68166636,0.00013,2]
[326540138,1715099441898,-38145.28353489,0.00013,2]
[326540403,1715099447032,-15405.32849728,0.00013,2]
[326540404,1715099447048,-2515.878,0.00013,2]
[326540419,1715099449107,-1293.63481587,0.00012349,2]
[326540422,1715099449134,-11885.96778873,0.00013,2]
[326540425,1715099449148,-1056.35314666,0.00013,2]
[326540676,1715099922239,1034.77,0.00025,120]
[326540679,1715100200347,-600.0,9.715e-05,2]
[326540681,1715100360198,-1246.5281018,9.709e-05,2]
[326540682,1715100360221,-331.13490455,9.71e-05,2]
[326540683,1715100360244,-155.0,9.71e-05,2]
[326540684,1715100360268,-364.37212277,9.711e-05,2]
[326540685,1715100360291,-1023.02542694,9.715e-05,2]
[326540686,1715100360315,-879.93944394,9.715e-05,2]
[326540688,1715100360778,-4000.0,9.715e-05,2]
[326540689,1715100361313,-4000.0,9.715e-05,2]
[326540690,1715100361788,-4000.0,9.715e-05,2]
[326540691,1715100363600,-4000.0,9.715e-05,2]
[326540692,1715100364122,-2824.58004685,9.715e-05,2]
[326540693,1715100364677,-345.39930629,9.715e-05,2]
[326540694,1715100365795,-399.81092108,9.715e-05,2]
[326540695,1715100376171,430.20972578,9.715e-05,2]
[326540696,1715100376197,4000.0,9.715e-05,2]
[326540697,1715100376224,2652.81285491,9.715e-05,2]
[326540698,1715100380101,318.47564872,9.715e-05,2]
[326540699,1715100380764,398.38106316,9.715e-05,2]
[326540700,1715100387458,-170.67,9.722e-05,2]
[326540701,1715100390810,3829.33,9.715e-05,2]
[326540702,1715100390835,4000.0,9.715e-05,2]
[326540703,1715100390860,630.33043321,9.715e-05,2]
[326540704,1715100390883,4000.0,9.715e-05,2]
[326540705,1715100399586,-4000.0,9.715e-05,2]
[326540706,1715100399993,-3540.33956679,9.715e-05,2]
[326540707,1715100416212,459.66043321,9.715e-05,2]
[326540708,1715100416243,4000.0,9.715e-05,2]
[326540709,1715100416277,4000.0,9.715e-05,2]
[326540710,1715100429766,-4000.0,9.715e-05,2]
[326540711,1715100431066,-4000.0,9.715e-05,2]
[326540712,1715100433498,-3540.33956679,9.715e-05,2]
[326540713,1715100461622,-2372.18564,0.00011002,2]
[326540714,1715100462151,-250.0,0.00011058,2]
[326540715,1715100462160,-482.5,0.00011145,2]
[326540716,1715100462169,-219.4488,0.00011198,2]
[326540717,1715100462178,-157.04,0.0001128,2]
[326540718,1715100462187,-157.04,0.00011286,2]
[326540719,1715100462196,-157.04,0.00011292,2]
[326540720,1715100462205,-157.04,0.00011298,2]
[326540721,1715100462214,-157.04,0.00011305,2]
[326540722,1715100462224,-157.04,0.00011311,2]
[326540723,1715100462233,-157.04,0.00011317,2]
[326540724,1715100462242,-157.04,0.00011324,2]
[326540725,1715100462251,-163.91684,0.00011324,2]
[326540726,1715100462266,-155.62872,0.00011324,2]
[326540727,1715100474207,459.66043321,9.715e-05,2]
[326540728,1715100474230,4000.0,9.715e-05,2]
[326540729,1715100474254,2035.22822454,9.715e-05,2]
[326540730,1715100494858,-180.44444,0.00011324,2]
[326540731,1715100494894,-157.04,0.0001133,2]
[326540732,1715100494929,-157.04,0.00011336,2]
[326540733,1715100494962,-150.0,0.00011348,2]
[326540734,1715100495014,-180.44444,0.00011349,2]
[326540735,1715100495030,-157.04,0.00011349,2]
[326540736,1715100495043,-157.04,0.00011349,2]
[326540737,1715100495059,-150.0,0.00011349,2]
[326540738,1715100495071,-7010.95112,0.00011349,2]
[326540739,1715100506801,1964.77177546,9.715e-05,2]
[326540740,1715100507087,2035.22822454,9.715e-05,2]
[326540744,1715100637692,-287.87646049,0.00010999,2]
[326540763,1715100639027,-982.87174237,0.00010999,2]
[326540766,1715100639039,-2254.22188273,0.00011,2]
[326540768,1715100639053,-16244.52444,0.00011349,2]
[326540770,1715100639070,-1349.96,0.00011501,2]
[326540773,1715100639130,-3599.53,0.00011516,2]
[326540774,1715100639153,-233.88,0.00011541,2]
[326540775,1715100639196,-157.89,0.00011543,2]
[326540776,1715100639218,-1284.38,0.00011558,2]
[326540777,1715100639230,-226.24,0.00011617,2]
[326540778,1715100639245,-189.08,0.0001164,2]
[326540779,1715100639260,-150.0,0.00011688,2]
[326540780,1715100639314,-436.44,0.00011688,2]
[326540781,1715100639328,-1000.0,0.00011697,2]
[326540782,1715100639364,-164.29,0.00011726,2]
[326540783,1715100639409,-1139.65,0.00011756,2]
[326540784,1715100639432,-1391.98,0.00011809,2]
[326540785,1715100639463,-157.89,0.00011844,2]
[326540786,1715100639507,-2053.83,0.00011863,2]
[326540787,1715100639542,-166.58,0.00012011,2]
[326540788,1715100639590,-150.0,0.00012011,2]
[326540789,1715100639601,-1237.86,0.00012011,2]
[326540790,1715100639617,-150.0,0.00012134,2]
[326540791,1715100639629,-157.89,0.00012145,2]
[326540792,1715100639641,-2738.5643763,0.00012253,2]
[326540793,1715100639669,-173.6,0.0001247,2]
[326540794,1715100639685,-210.0,0.00012483,2]
[326540795,1715100639704,-2577.9624,0.000128,2]
[326540796,1715100639717,-1000.0,0.000128,2]
[326540797,1715100639735,-403.24986669,0.00012898,2]
[326540798,1715100639747,-155.0,0.00012898,2]
[326540799,1715100639760,-3665.75195584,0.00012898,2]
[326540800,1715100639771,-5266.11358225,0.00012898,2]
[326540801,1715100639783,-1258.73676284,0.00012898,2]
[326540802,1715100639795,-1246.8456982,0.00012899,2]
[326540803,1715100639810,-155.06045852,0.00012899,2]
[326540804,1715100639824,-462.7919,0.000129,2]
[326540805,1715100639835,-174.76024923,0.000129,2]
[326540806,1715100639849,-174397.38788636,0.000129,2]
[326540807,1715100639878,-500.0,0.000129,2]
[326540808,1715100639894,-5945.54326214,0.000129,2]
[326540809,1715100639907,-195.87309809,0.000129,2]
[326540810,1715100639918,-520.43735752,0.000129,2]
[326540811,1715100639930,-171.75062702,0.000129,2]
[326540812,1715100639942,-150.0,0.00012986,2]
[326540813,1715100639953,-151.0,0.0001299,2]
[326540814,1715100639964,-151.0,0.0001299,2]
[326540815,1715100639979,-151.0,0.0001299,2]
[326540816,1715100639990,-151.0,0.0001299,2]
[326540817,1715100640002,-151.0,0.0001299,2]
[326540818,1715100640013,-151.0,0.0001299,2]
[326540819,1715100640025,-151.0,0.0001299,2]
[326540820,1715100640045,-151.0,0.0001299,2]
[326540821,1715100640063,-151.0,0.0001299,2]
[326540822,1715100640074,-151.0,0.0001299,2]
[326540823,1715100640127,-151.0,0.0001299,2]
[326540824,1715100640152,-151.0,0.0001299,2]
[326540825,1715100640190,-151.0,0.0001299,2]
[326540826,1715100640264,-151.0,0.0001299,2]
[326540827,1715100640360,-151.0,0.0001299,2]
[326540828,1715100640416,-151.0,0.0001299,2]
[326540829,1715100640428,-151.0,0.0001299,2]
[326540830,1715100640444,-151.0,0.0001299,2]
[326540831,1715100640457,-151.0,0.0001299,2]
[326540832,1715100640470,-151.0,0.0001299,2]
[326540833,1715100640483,-151.0,0.0001299,2]
[326540834,1715100640497,-151.0,0.0001299,2]
[326540835,1715100640545,-151.0,0.0001299,2]
[326540836,1715100640563,-574.34871661,0.00012999,2]
[326540837,1715100640574,-150.01,0.00012999,2]
[326540838,1715100640586,-187243.60847827,0.00013,2]
[326540839,1715100640618,-471245.86769942,0.00013,2]
[326540840,1715100640629,-179.73027073,0.00013,2]
[326540841,1715100640669,-217923.59845855,0.00013,2]
[326540842,1715100640706,-182859.22915505,0.00013,2]
[326540843,1715100640724,-12400.0,0.00013,2]
[326540844,1715100640740,-13600.0,0.00013,2]
[326540898,1715100648149,-331.13490455,0.00011348,2]
[326540901,1715100648160,-305.26609545,0.000128,2]
[326540903,1715100648173,-7194.73390455,0.000128,2]
[326540904,1715100648190,-6025.46609545,0.00013,2]
[326540907,1715100648263,-1720.062,0.00013,2]
[326540908,1715100648276,-16264.22097748,0.00013,2]
[326540909,1715100648311,-2083.27902252,0.00013,2]
[326540920,1715100652753,-4399.77990321,0.00013,2]
[326540921,1715100652769,-2880.36659732,0.00013,2]
[326540923,1715100652785,-872.81,0.00013,2]
[326540924,1715100652800,-616.46900108,0.00013,2]
[326540927,1715100652813,-1415.55102347,0.00013,2]
[326540929,1715100652831,-349.41691832,0.00013,2]
[326540958,1715100653576,-10963.71283626,0.00013,2]
[326540959,1715100653590,-131820.34626602,0.00013,2]
[326540960,1715100653603,-188.62918423,0.00013,2]
[326540962,1715100653615,-1846448.52478765,0.00013,2]
[326540964,1715100653635,-1000.0,0.00013,2]
[326540969,1715100653685,-1000.0,0.00013,2]
[326540971,1715100653696,-200.0,0.00013,2]
[326540972,1715100653707,-319.82265445,0.00013,2]
[326540973,1715100653717,-783190.39850414,0.00013,2]
[326540975,1715100653733,-2000.0,0.00013,2]
[326540976,1715100653750,-200.0,0.00013,2]
[326540978,1715100653789,-151.0,0.00013,2]
[326540980,1715100653800,-151.0,0.00013,2]
[326540983,1715100653855,-151.94652,0.00013,2]
[326540985,1715100653866,-153.782488,0.00013,2]
[326540987,1715100653881,-159.233217,0.00013,2]
[326540988,1715100653892,-154.685016,0.00013,2]
[326540990,1715100653912,-153.859918,0.00013,2]
[326540991,1715100653940,-152.956098,0.00013,2]
[326540993,1715100653952,-151.0,0.00013,2]
[326540995,1715100653963,-151.0,0.00013,2]
[326540997,1715100653974,-151.0,0.00013,2]
[326540999,1715100653985,-151.797156,0.00013,2]
[326541000,1715100654003,-151.0,0.00013,2]
[326541002,1715100654018,-151.0,0.00013,2]
[326541004,1715100654030,-151.0,0.00013,2]
[326541005,1715100654041,-151.250792,0.00013,2]
[326541006,1715100654056,-152.040547,0.00013,2]
[326541007,1715100654070,-151.0,0.00013,2]
[326541011,1715100654085,-155.53782,0.00013,2]
[326541014,1715100654105,-151.0,0.00013,2]
[326541017,1715100654117,-151.0,0.00013,2]
[326541019,1715100654130,-154.022372,0.00013,2]
[326541023,1715100654142,-154.130572,0.00013,2]
[326541027,1715100654177,-151.781478,0.00013,2]
[326541029,1715100654191,-152.41472,0.00013,2]
[326541032,1715100654218,-151.0,0.00013,2]
[326541041,1715100654279,-152.479682,0.00013,2]
[326541044,1715100654290,-151.433602,0.00013,2]
[326541046,1715100654302,-151.0,0.00013,2]
[326541050,1715100654364,-151.0,0.00013,2]
[326541051,1715100654392,-151.0,0.00013,2]
[326541053,1715100654415,-151.0,0.00013,2]
[326541054,1715100654453,-151.0,0.00013,2]
[326541056,1715100654480,-151.0,0.00013,2]
[326541057,1715100654498,-151.0,0.00013,2]
[326541061,1715100654534,-151.732122,0.00013,2]
[326541062,1715100654549,-151.0,0.00013,2]
[326541064,1715100654568,-162.886067,0.00013,2]
[326541067,1715100654617,-151.0,0.00013,2]
[326541069,1715100654629,-1480.936398,0.00013,2]
[326541071,1715100654661,-1480.936398,0.00013,2]
[326541072,1715100654671,-151.0,0.00013,2]
[326541073,1715100654682,-151.0,0.00013,2]
[326541075,1715100654709,-151.0,0.00013,2]
[326541078,1715100654788,-152.225759,0.00013,2]
[326541080,1715100654838,-799.219346,0.00013,2]
[326541082,1715100654853,-799.219346,0.00013,2]
[326541084,1715100654872,-151.0,0.00013,2]
[326541089,1715100654953,-151.0,0.00013,2]
[326541091,1715100654972,-151.0,0.00013,2]
[326541092,1715100654984,-151.0,0.00013,2]
[326541093,1715100654996,-151.0,0.00013,2]
[326541094,1715100655006,-151.0,0.00013,2]
[326541097,1715100655041,-151.0,0.00013,2]
[326541099,1715100655056,-151.0,0.00013,2]
[326541100,1715100655068,-151.0,0.00013,2]
[326541102,1715100655101,-151.0,0.00013,2]
[326541104,1715100655118,-151.0,0.00013,2]
[326541106,1715100655134,-151.0,0.00013,2]
[326541107,1715100655155,-247.848146,0.00013,2]
[326541109,1715100655166,-167.738304,0.00013,2]
[326541110,1715100655186,-151.0,0.00013,2]
[326541114,1715100655219,-2110.33733,0.00013,2]
[326541117,1715100655253,-151.320678,0.00013,2]
[326541119,1715100655265,-151.567172,0.00013,2]
[326541120,1715100655285,-952.818647,0.00013,2]
[326541121,1715100655296,-152.023024,0.00013,2]
[326541124,1715100655320,-952.818647,0.00013,2]
[326541126,1715100655344,-151.0,0.00013,2]
[326541128,1715100655357,-151.0,0.00013,2]
[326541132,1715100655392,-151.535813,0.00013,2]
[326541136,1715100655450,-151.0,0.00013,2]
[326541137,1715100655467,-151.89186,0.00013,2]
[326541138,1715100655478,-151.0,0.00013,2]
[326541140,1715100655492,-1000.0,0.00013,2]
[326541142,1715100655525,-151.0,0.00013,2]
[326541146,1715100655579,-151.0,0.00013,2]
[326541148,1715100655607,-1233.3601,0.00013,2]
[326541150,1715100655618,-152.539665,0.00013,2]
[326541152,1715100655647,-152.159195,0.00013,2]
[326541154,1715100655658,-152.818272,0.00013,2]
[326541155,1715100655682,-151.0,0.00013,2]
[326541156,1715100655693,-151.0,0.00013,2]
[326541158,1715100655747,-240.261545,0.00013,2]
[326541159,1715100655758,-151.0,0.00013,2]
[326541161,1715100655771,-151.0,0.00013,2]
[326541164,1715100655802,-151.0,0.00013,2]
[326541166,1715100655821,-151.0,0.00013,2]
[326541167,1715100655832,-240.261545,0.00013,2]
[326541170,1715100655857,-151.0,0.00013,2]
[326541171,1715100655894,-151.960884,0.00013,2]
[326541173,1715100655904,-151.0,0.00013,2]
[326541174,1715100655918,-152.180905,0.00013,2]
[326541177,1715100655943,-151.0,0.00013,2]
[326541178,1715100655966,-151.0,0.00013,2]
[326541180,1715100656001,-274.785957,0.00013,2]
[326541182,1715100656012,-151.0,0.00013,2]
[326541184,1715100656023,-151.0,0.00013,2]
[326541186,1715100656039,-223.0,0.00013,2]
[326541188,1715100656061,-672.0,0.00013,2]
[326541189,1715100656075,-151.0,0.00013,2]
[326541191,1715100656086,-152.126057,0.00013,2]
[326541192,1715100656099,-153.685592,0.00013,2]
[326541194,1715100656111,-152.039619,0.00013,2]
[326541196,1715100656173,-7332.6,0.00013,2]
[326541197,1715100656184,-7435.41,0.00013,2]
[326541199,1715100656214,-337.3887668,0.00013011,2]
[326541200,1715100656224,-1248.3789888,0.00013011,2]
[326541202,1715100656235,-404.86652061,0.00013011,2]
[326541204,1715100656247,-5096.8927719,0.0001302,2]
[326541205,1715100656284,-32109.2645958,0.0001302,2]
[326541206,1715100656294,-4233.2815834,0.0001302,2]
[326541209,1715100656324,-22778.029205,0.0001302,2]
[326541211,1715100656336,-150.0,0.000131,2]
[326541215,1715100656367,-150.0,0.000131,2]
[326541217,1715100656379,-828.7,0.000131,2]
[326541219,1715100656394,-2000.0,0.0001313,2]
[326541220,1715100656418,-200.0,0.0001313,2]
[326541221,1715100656429,-1000.0,0.00013159,2]
[326541223,1715100656443,-2000.0,0.00013261,2]
[326541226,1715100656500,-200.0,0.00013261,2]
[326541228,1715100656514,-2000.0,0.00013394,2]
[326541232,1715100656573,-200.0,0.00013394,2]
[326541235,1715100656605,-196.38,0.00013425,2]
[326541237,1715100656616,-1486.26,0.00013425,2]
[326541239,1715100656641,-2000.0,0.00013528,2]
[326541241,1715100656652,-200.0,0.00013528,2]
[326541242,1715100656664,-151.0,0.0001369,2]
[326541244,1715100656676,-200.0,0.00013699,2]
[326541246,1715100656686,-200.0,0.00013699,2]
[326541247,1715100656698,-200.0,0.00013699,2]
[326541248,1715100656712,-200.0,0.00013699,2]
[326541250,1715100656727,-200.0,0.00013699,2]
[326541252,1715100656745,-6063.73,0.00013699,2]
[326541254,1715100656757,-200.0,0.00013699,2]
[326541257,1715100656790,-151.476063,0.00013699,2]
[326541258,1715100656803,-13695.05,0.00013699,2]
[326541260,1715100656833,-3424.89,0.00013699,2]
[326541261,1715100656875,-159.413091,0.00013699,2]
[326541263,1715100656892,-159.413091,0.00013699,2]
[326541265,1715100656904,-2307.16,0.00013699,2]
[326541266,1715100656932,-6275.25,0.000137,2]
[326541269,1715100656964,-6275.25,0.000137,2]
[326541271,1715100657003,-6275.25,0.000137,2]
[326541273,1715100657014,-6275.25,0.000137,2]
[326541275,1715100657032,-6275.25,0.000137,2]
[326541276,1715100657043,-216.51775787,0.00014,2]
[326541278,1715100657056,-762.06209404,0.00014,2]
[326541280,1715100657073,-173.6,0.00014029,2]
[326541282,1715100657107,-2110.33733,0.0001405,2]
[326541285,1715100657138,-5945.54326208,0.00014134,2]
[326541287,1715100657164,-3599.53,0.00014256,2]
[326541289,1715100657177,-10000.0,0.00014295,2]
[326541291,1715100657192,-520.43735752,0.00014471,2]
[326541293,1715100657205,-150.0,0.0001449,2]
[326541294,1715100657215,-150.0,0.00014568,2]
[326541295,1715100657226,-1000.0,0.00014621,2]
[326541297,1715100657264,-158.4,0.00014634,2]
[326541299,1715100657280,-195.87309804,0.00014934,2]
[326541302,1715100657317,-5906.0,0.00014992,2]
[326541303,1715100657328,-312.975,0.00014992,2]
[326541305,1715100657353,-462.0,0.00014992,2]
[326541307,1715100657387,-1397.0,0.00014992,2]
[326541308,1715100657398,-972.0,0.00014992,2]
[326541311,1715100657426,-2294.0,0.00014992,2]
[326541312,1715100657437,-2301.0,0.00014992,2]
[326541315,1715100657464,-207.491,0.00014992,2]
[326541316,1715100657475,-37793.0,0.00014992,2]
[326541319,1715100657495,-1260.514,0.00014992,2]
[326541320,1715100657511,-649.731,0.00014992,2]
[326541322,1715100657521,-1058.0,0.00014992,2]
[326541324,1715100657531,-1227.0,0.00014992,2]
[326541326,1715100657550,-438.0,0.00014992,2]
[326541328,1715100657565,-809.0,0.00014992,2]
[326541330,1715100657577,-611.0,0.00014992,2]
[326541331,1715100657589,-189.033,0.00014992,2]
[326541333,1715100657605,-1788.0,0.00014992,2]
[326541335,1715100657623,-256.097,0.00014992,2]
[326541337,1715100657640,-421.0,0.00014992,2]
[326541339,1715100657657,-151.677,0.00014992,2]
[326541342,1715100657688,-2451.0,0.00014992,2]
[326541343,1715100657699,-151.013,0.00014992,2]
[326541346,1715100657728,-1654.07,0.00014992,2]
[326541348,1715100657744,-1143.459,0.00014992,2]
[326541351,1715100657768,-444.0,0.00014992,2]
[326541352,1715100657779,-216.0,0.00014992,2]
[326541354,1715100657793,-3153.0,0.00014992,2]
[326541355,1715100657804,-151.355,0.00014992,2]
[326541356,1715100657817,-151.0,0.00014992,2]
[326541358,1715100657828,-206.342,0.00014992,2]
[326541360,1715100657839,-618.22068598,0.00015,2]
[326541362,1715100657854,-155.54925684,0.00015,2]
[326541364,1715100657870,-200.0,0.00015,2]
[326541366,1715100657889,-183.72,0.00015,2]
[326541368,1715100657903,-155.24,0.00015068,2]
[326541371,1715100657920,-200.0,0.000151,2]
[326541373,1715100657960,-4516.0,0.000152,2]
[326541374,1715100657970,-151.0,0.00015302,2]
[326541377,1715100658018,-2110.33733,0.0001531,2]
[326541378,1715100658029,-594.77,0.00015315,2]
[326541380,1715100658040,-5945.54326208,0.00015368,2]
[326541382,1715100658053,-858.0,0.000155,2]
[326541384,1715100658075,-173.6,0.00015587,2]
[326541385,1715100658088,-414.71,0.00015664,2]
[326541392,1715100658168,-773.9024838,0.00015809,2]
[326541394,1715100658180,-167.0,0.00015831,2]
[326541395,1715100658191,-167.18,0.00015831,2]
[326541396,1715100658203,-150.0,0.00015892,2]
[326541397,1715100658215,-3077.0200038,0.00016,2]
[326541400,1715100658250,-2000.0,0.00016,2]
[326541403,1715100658273,-2000.0,0.0001601,2]
[326541404,1715100658284,-154.77704803,0.00016012,2]
[326541406,1715100658319,-158.5740467,0.00016013,2]
[326541407,1715100658331,-2000.0,0.0001602,2]
[326541408,1715100658343,-2000.0,0.0001603,2]